fUST/lending_fUST_20250613
["ID","MTS","AMOUNT","RATE_DAILY","PERIOD"]
[365616459,1749807039484,-678.23502845,0.00021999,2]
[365616460,1749807039494,-678.23502845,0.00021999,2]
[365616461,1749807039505,-678.23502845,0.00021999,2]
[365616463,1749807039514,-678.23502845,0.00021999,2]
[365616464,1749807039524,-184.0,0.00022,2]
[365616465,1749807039534,-500.0,0.00022,2]
[365616466,1749807039544,-5155.45732688,0.00022,2]
[365616467,1749807039554,-1000.0,0.00022052,2]
[365616468,1749807039563,-500.0,0.0002206,2]
[365616469,1749807039573,-207.4,0.00022095,2]
[365616470,1749807039583,-242.0,0.00022116,2]
[365616471,1749807039596,-185.63,0.00022138,3]
[365616472,1749807039608,-556.89,0.00022138,3]
[365616473,1749807039619,-500.0,0.00022149,2]
[365616474,1749807039629,-500.0,0.00022149,2]
[365616476,1749807039638,-194.03,0.00022149,2]
[365616478,1749807039649,-160.0,0.00022153,2]
[365616480,1749807039659,-160.0,0.00022153,2]
[365616481,1749807039669,-160.0,0.00022153,2]
[365616482,1749807039679,-424.32678023,0.00022153,2]
[365616483,1749807039690,-160.0,0.00022153,2]
[365616484,1749807039700,-160.0,0.00022153,2]
[365616485,1749807039710,-844.94977992,0.00022153,2]
[365616486,1749807039719,-160.0,0.00022153,2]
[365616487,1749807039728,-12531.02669373,0.00022153,2]
[365616488,1749807039737,-160.0,0.00022153,2]
[365616489,1749807039747,-835.28007164,0.00022153,2]
[365616490,1749807039756,-160.0,0.00022153,2]
[365616491,1749807039766,-229.78555783,0.00022153,2]
[365616492,1749807039776,-1000.0,0.00022177,2]
[365616493,1749807039785,-202.02602724,0.00022191,30]
[365616494,1749807039795,-460.0,0.00022191,4]
[365616495,1749807039805,-471.6,0.00022191,2]
[365616496,1749807039815,-460.0,0.00022191,4]
[365616497,1749807039825,-460.0,0.00022191,4]
[365616498,1749807039836,-657.38,0.00022191,4]
[365616499,1749807039846,-772.91,0.00022191,4]
[365616500,1749807039855,-460.0,0.00022191,4]
[365616501,1749807039864,-460.0,0.00022191,4]
[365616502,1749807039874,-592.42,0.00022191,4]
[365616503,1749807039884,-460.0,0.00022191,4]
[365616504,1749807039894,-564.37,0.00022191,4]
[365616505,1749807039903,-460.0,0.00022191,4]
[365616506,1749807039913,-460.0,0.00022191,4]
[365616507,1749807039925,-263.34,0.00022191,4]
[365616508,1749807039934,-460.0,0.00022191,4]
[365616509,1749807039944,-460.0,0.00022191,4]
[365616510,1749807039953,-700.44,0.00022191,4]
[365616511,1749807039962,-460.0,0.00022191,4]
[365616512,1749807039972,-656.3,0.00022191,4]
[365616513,1749807039981,-752.26,0.00022191,4]
[365616514,1749807039991,-340.0,0.00022191,4]
[365616515,1749807040000,-460.0,0.00022191,4]
[365616516,1749807040010,-460.0,0.00022191,4]
[365616517,1749807040022,-696.88,0.00022191,4]
[365616518,1749807040032,-460.0,0.00022191,4]
[365616519,1749807040041,-460.0,0.00022191,4]
[365616520,1749807040051,-750.33,0.00022191,4]
[365616522,1749807040060,-487.19,0.00022191,4]
[365616524,1749807040070,-4172.31,0.00022194,2]
[365616525,1749807040080,-850.91645216,0.00022198,2]
[365616526,1749807040090,-425.73823071,0.00022269,2]
[365616528,1749807040100,-971.11250847,0.00022283,2]
[365616533,1749807040205,-120.01813867,0.00022283,2]
[365616534,1749807040215,-168.0,0.00022375,2]
[365616535,1749807040225,-460.0,0.00022465,4]
[365616536,1749807040235,-471.6,0.00022465,2]
[365616537,1749807040245,-460.0,0.00022465,4]
[365616538,1749807040254,-460.0,0.00022465,4]
[365616539,1749807040264,-657.38,0.00022465,4]
[365616540,1749807040274,-772.91,0.00022465,4]
[365616541,1749807040283,-460.0,0.00022465,4]
[365616542,1749807040293,-460.0,0.00022465,4]
[365616543,1749807040303,-592.42,0.00022465,4]
[365616544,1749807040312,-564.37,0.00022465,4]
[365616545,1749807040322,-460.0,0.00022465,4]
[365616546,1749807040331,-460.0,0.00022465,4]
[365616547,1749807040343,-460.0,0.00022465,4]
[365616548,1749807040353,-460.0,0.00022465,4]
[365616549,1749807040362,-700.44,0.00022465,4]
[365616550,1749807040372,-460.0,0.00022465,4]
[365616551,1749807040382,-656.3,0.00022465,4]
[365616552,1749807040392,-752.26,0.00022465,4]
[365616553,1749807040401,-427.82498328,0.00022465,4]
[365616554,1749807040411,-460.0,0.00022465,4]
[365616555,1749807040419,-696.88,0.00022465,4]
[365616556,1749807040429,-460.0,0.00022465,4]
[365616557,1749807040438,-563.3,0.00022465,4]
[365616558,1749807040448,-750.33,0.00022465,4]
[365616559,1749807040457,-487.19,0.00022465,4]
[365616560,1749807040467,-500.0,0.00022466,2]
[365616561,1749807040476,-500.0,0.00022466,2]
[365616562,1749807040486,-500.0,0.00022466,2]
[365616563,1749807040495,-192.22463835,0.00022466,2]
[365616564,1749807040506,-500.0,0.00022466,2]
[365616565,1749807040515,-500.0,0.000225,2]
[365616566,1749807040630,-500.0,0.000225,2]
[365616567,1749807040640,-203.00870279,0.00022554,2]
[365616568,1749807040650,-168.0,0.00022585,2]
[365616569,1749807040660,-1500.0,0.000226,2]
[365616570,1749807040670,-298.0,0.00022692,2]
[365616571,1749807040680,-500.0,0.00022696,2]
[365616572,1749807040691,-500.0,0.00022696,3]
[365616573,1749807040701,-425.73823071,0.0002272,2]
[365616574,1749807040711,-460.0,0.00022739,4]
[365616575,1749807040721,-471.6,0.00022739,2]
[365616576,1749807040731,-460.0,0.00022739,4]
[365616577,1749807040740,-460.0,0.00022739,4]
[365616578,1749807040749,-657.38,0.00022739,4]
[365616579,1749807040759,-772.91,0.00022739,4]
[365616580,1749807040768,-460.0,0.00022739,4]
[365616581,1749807040778,-295.86,0.00022739,4]
[365616582,1749807040787,-592.42,0.00022739,4]
[365616583,1749807040797,-564.37,0.00022739,4]
[365616584,1749807040807,-460.0,0.00022739,4]
[365616585,1749807040816,-460.0,0.00022739,4]
[365616586,1749807040825,-460.0,0.00022739,4]
[365616587,1749807040836,-460.0,0.00022739,4]
[365616588,1749807040845,-700.44,0.00022739,4]
[365616589,1749807040855,-460.0,0.00022739,4]
[365616590,1749807040865,-656.3,0.00022739,4]
[365616591,1749807040875,-752.26,0.00022739,4]
[365616592,1749807040885,-460.0,0.00022739,4]
[365616593,1749807040894,-696.88,0.00022739,4]
[365616594,1749807040905,-460.0,0.00022739,4]
[365616595,1749807040915,-750.33,0.00022739,4]
[365616596,1749807040924,-487.19,0.00022739,4]
[365616597,1749807040934,-298.0,0.00022744,2]
[365616598,1749807040943,-298.0,0.00022838,2]
[365616599,1749807040954,-151.0,0.0002288,7]
[365616600,1749807040963,-500.0,0.00023,2]
[365616601,1749807040973,-500.0,0.00023,2]
[365616602,1749807040982,-575.47496216,0.00023,2]
[365616603,1749807040991,-6016.01930821,0.00023,60]
[365616604,1749807041001,-1097.02380521,0.00023,30]
[365616605,1749807041011,-52643.37044786,0.00023,2]
[365616606,1749807041021,-3028.05637756,0.00023,2]
[365616607,1749807041031,-236951.9928602,0.00023,20]
[365616608,1749807041040,-460.0,0.00023013,4]
[365616609,1749807041050,-471.6,0.00023013,2]
[365616610,1749807041060,-460.0,0.00023013,4]
[365616611,1749807041070,-460.0,0.00023013,4]
[365616612,1749807041079,-657.38,0.00023013,4]
[365616613,1749807041090,-772.91,0.00023013,4]
[365616614,1749807041099,-460.0,0.00023013,4]
[365616615,1749807041108,-592.42,0.00023013,4]
[365616616,1749807041119,-564.37,0.00023013,4]
[365616617,1749807041129,-460.0,0.00023013,4]
[365616618,1749807041139,-460.0,0.00023013,4]
[365616619,1749807041148,-460.0,0.00023013,4]
[365616620,1749807041158,-460.0,0.00023013,4]
[365616621,1749807041167,-700.44,0.00023013,4]
[365616622,1749807041177,-460.0,0.00023013,4]
[365616623,1749807041187,-656.3,0.00023013,4]
[365616624,1749807041197,-752.26,0.00023013,4]
[365616625,1749807041207,-460.0,0.00023013,4]
[365616626,1749807041217,-696.88,0.00023013,4]
[365616627,1749807041227,-750.33,0.00023013,4]
[365616628,1749807041236,-487.19,0.00023013,4]
[365616629,1749807041246,-222.46187697,0.00023014,3]
[365616630,1749807041256,-405.0,0.00023086,2]
[365616631,1749807041265,-964.0,0.00023086,2]
[365616632,1749807041275,-500.0,0.00023156,2]
[365616633,1749807041285,-5563.07,0.00023159,2]
[365616634,1749807041295,-587.0,0.00023166,2]
[365616635,1749807041305,-587.0,0.00023166,2]
[365616636,1749807041314,-425.73823071,0.00023172,2]
[365616637,1749807041325,-250.0,0.00023204,2]
[365616638,1749807041336,-500.0,0.00023244,2]
[365616639,1749807041346,-467.51339151,0.00023244,4]
[365616640,1749807041357,-460.0,0.00023287,4]
[365616641,1749807041366,-471.6,0.00023287,2]
[365616642,1749807041375,-460.0,0.00023287,4]
[365616643,1749807041385,-460.0,0.00023287,4]
[365616644,1749807041395,-657.38,0.00023287,4]
[365616645,1749807041405,-772.91,0.00023287,4]
[365616646,1749807041414,-460.0,0.00023287,4]
[365616647,1749807041424,-592.42,0.00023287,4]
[365616648,1749807041434,-564.37,0.00023287,4]
[365616649,1749807041443,-460.0,0.00023287,4]
[365616650,1749807041452,-460.0,0.00023287,4]
[365616651,1749807041461,-460.0,0.00023287,4]
[365616652,1749807041471,-460.0,0.00023287,4]
[365616653,1749807041481,-700.44,0.00023287,4]
[365616654,1749807041491,-460.0,0.00023287,4]
[365616655,1749807041501,-656.3,0.00023287,4]
[365616656,1749807041511,-752.26,0.00023287,4]
[365616657,1749807041521,-460.0,0.00023287,4]
[365616658,1749807041530,-696.88,0.00023287,4]
[365616659,1749807041540,-750.33,0.00023287,4]
[365616660,1749807041550,-487.19,0.00023287,4]
[365616661,1749807041560,-158.3157021,0.00023288,2]
[365616662,1749807041570,-571.7893708,0.00023288,2]
[365616663,1749807041579,-153.0,0.00023288,2]
[365616664,1749807041590,-298.0,0.00023291,2]
[365616665,1749807041600,-298.0,0.00023323,2]
[365616666,1749807041614,-203.00870279,0.0002333,2]
[365616667,1749807041624,-158.6873431,0.00023367,2]
[365616668,1749807041634,-153.0,0.00023367,2]
[365616669,1749807041643,-176.9126268,0.00023367,2]
[365616670,1749807041653,-573.5627402,0.00023367,2]
[365616671,1749807041663,-153.0,0.00023367,2]
[365616672,1749807041672,-314.5326261,0.00023367,2]
[365616673,1749807041681,-573.5627402,0.00023367,2]
[365616674,1749807041693,-298.0,0.00023448,2]
[365616675,1749807041704,-4801.66012742,0.00023454,2]
[365616676,1749807041714,-215.0738,0.00023464,2]
[365616677,1749807041723,-500.0,0.00023489,2]
[365616678,1749807041733,-500.0,0.00023489,2]
[365616679,1749807041743,-371.26,0.00023508,3]
[365616680,1749807041753,-194.03,0.00023518,2]
[365616681,1749807041762,-500.0,0.00023538,2]
[365616682,1749807041773,-153.0,0.00023544,2]
[365616683,1749807041782,-153.0,0.00023544,2]
[365616684,1749807041791,-153.0,0.00023544,2]
[365616685,1749807041801,-153.0,0.00023544,2]
[365616686,1749807041811,-153.0,0.00023544,2]
[365616687,1749807041820,-153.0,0.00023544,2]
[365616688,1749807041829,-153.0,0.00023544,2]
[365616689,1749807041840,-153.0,0.00023545,2]
[365616690,1749807041849,-153.0,0.00023545,2]
[365616691,1749807041859,-153.0,0.00023545,2]
[365616692,1749807041868,-153.0,0.00023547,2]
[365616693,1749807041878,-153.0,0.00023547,2]
[365616694,1749807041887,-153.0,0.00023547,2]
[365616695,1749807041896,-153.0,0.00023547,2]
[365616696,1749807041906,-153.0,0.00023547,2]
[365616697,1749807041916,-460.0,0.00023561,4]
[365616698,1749807041925,-471.6,0.00023561,2]
[365616699,1749807041935,-460.0,0.00023561,4]
[365616700,1749807041944,-460.0,0.00023561,4]
[365616701,1749807041954,-657.38,0.00023561,4]
[365616702,1749807041963,-772.91,0.00023561,4]
[365616703,1749807041973,-460.0,0.00023561,4]
[365616704,1749807041982,-592.42,0.00023561,4]
[365616705,1749807041992,-564.37,0.00023561,4]
[365616706,1749807042001,-460.0,0.00023561,4]
[365616707,1749807042011,-460.0,0.00023561,4]
[365616708,1749807042021,-460.0,0.00023561,4]
[365616709,1749807042031,-700.44,0.00023561,4]
[365616710,1749807042041,-460.0,0.00023561,4]
[365616711,1749807042050,-656.3,0.00023561,4]
[365616712,1749807042060,-752.26,0.00023561,4]
[365616713,1749807042069,-460.0,0.00023561,4]
[365616714,1749807042078,-696.88,0.00023561,4]
[365616715,1749807042088,-750.33,0.00023561,4]
[365616716,1749807042097,-487.19,0.00023561,4]
[365616717,1749807042107,-500.0,0.00023571,2]
[365616718,1749807042116,-66903.7435383,0.00023613,7]
[365616719,1749807042130,-6411.85095482,0.00023613,7]
[365616720,1749807042139,-425.73823071,0.00023623,2]
[365616721,1749807042149,-500.0,0.00023723,2]
[365616722,1749807042159,-513.99793096,0.00023773,2]
[365616723,1749807042169,-444.57198574,0.00023773,2]
[365616724,1749807042178,-500.0,0.00023773,2]
[365616725,1749807042188,-371.587805,0.00023773,2]
[365616726,1749807042196,-500.0,0.00023773,2]
[365616727,1749807042205,-500.0,0.00023773,2]
[365616728,1749807042215,-600.0,0.00023773,2]
[365616729,1749807042223,-500.0,0.00023773,2]
[365616730,1749807042232,-582644.49551745,0.0002378,5]
[365616731,1749807042243,-30200.0,0.0002378,5]
[365616732,1749807042254,-42838.54037726,0.0002378,5]
[365616733,1749807042265,-4747.49783594,0.0002378,5]
[365616734,1749807042275,-579.822,0.0002378,5]
[365616735,1749807042286,-1832.59836117,0.0002378,5]
[365616736,1749807042298,-902.81510669,0.0002378,5]
[365616737,1749807042310,-4000.00065251,0.0002378,5]
[365616818,1749807043602,-1988.71,0.0002377,10]
[365616820,1749807043620,-2740.7493195,0.0002378,5]
[365617091,1749807102674,170.0,0.00016438,3]
[365617094,1749807150767,200.0,0.00024575,120]
[365617095,1749807210764,200.0,0.00023777,120]
[365617098,1749807270801,200.0,0.00023768,120]
[365617101,1749807390753,200.0,0.00024429,120]
[365617104,1749807417702,169.0,0.00016438,3]
[365617105,1749807450769,200.0,0.00023942,120]
[365617128,1749807751995,200.0,0.00024015,120]
[365617137,1749807811359,200.0,0.00024544,120]
[365617155,1749807931836,200.0,0.00024009,120]
[365617156,1749807938823,714.9392489,0.00019817,120]
[365617164,1749807955078,203.878567,0.00013699,2]
[365617326,1749808111333,200.0,0.00023655,120]
[365617393,1749808232348,-264.47250874,0.00020115,2]
[365617395,1749808232359,-203.878567,0.00020187,2]
[365617397,1749808232369,-1300.62,0.00020215,2]
[365617399,1749808232378,-300.0,0.00020278,2]
[365617401,1749808232388,-1200.0,0.00020278,2]
[365617403,1749808232398,-1869.19661974,0.00020279,2]
[365617533,1749808238276,-23030.80338026,0.00020279,2]
[365617535,1749808238289,-168.245643,0.00020454,2]
[365617538,1749808238302,-184.977257,0.00020562,2]
[365617540,1749808238315,-500.0,0.00020964,2]
[365617542,1749808238327,-460.0,0.00021095,4]
[365617544,1749808238338,-360.0,0.00021095,4]
[365617546,1749808238350,-460.0,0.00021095,2]
[365617548,1749808238364,-597.13,0.00021095,4]
[365617550,1749808238376,-460.0,0.00021095,4]
[365617552,1749808238387,-460.0,0.00021095,4]
[365617554,1749808238398,-430.0,0.00021095,4]
[365617556,1749808238408,-430.0,0.00021095,4]
[365617558,1749808238420,-451.70318186,0.00021095,4]
[365617559,1749808238430,-460.0,0.00021095,4]
[365617560,1749808238443,-438.35530493,0.00021095,4]
[365617561,1749808238456,-436.13459278,0.00021095,4]
[365617563,1749808238467,-437.40623763,0.00021095,4]
[365617565,1749808238479,-435.27178142,0.00021095,4]
[365617567,1749808238491,-430.0,0.00021095,4]
[365617568,1749808238503,-324.30850817,0.00021095,4]
[365617569,1749808238516,-636.23,0.00021095,4]
[365617571,1749808238528,-601.77502242,0.00021095,4]
[365617573,1749808238540,-453.96885105,0.00021095,4]
[365617575,1749808238551,-290.39066346,0.00021095,4]
[365617576,1749808238563,-460.0,0.00021095,4]
[365617577,1749808238575,-433.68436843,0.00021095,4]
[365617578,1749808238587,-439.08402823,0.00021095,4]
[365617579,1749808238598,-440.0,0.00021095,4]
[365617580,1749808238610,-625.46,0.00021095,4]
[365617581,1749808238622,-440.3565206,0.00021095,4]
[365617582,1749808238633,-435.73085548,0.00021095,4]
[365617583,1749808238644,-486.37,0.00021095,4]
[365617584,1749808238655,-624.51,0.00021095,4]
[365617585,1749808238667,-469.61814088,0.00021177,2]
[365617586,1749808238682,-2131.63185912,0.00021177,2]
[365617587,1749808238693,-529.13,0.00021367,2]
[365617589,1749808238704,-460.0,0.00021367,4]
[365617591,1749808238715,-626.4,0.00021367,4]
[365617593,1749808238726,-460.0,0.00021367,4]
[365617595,1749808238737,-460.0,0.00021367,4]
[365617596,1749808238748,-460.0,0.00021367,4]
[365617597,1749808238759,-726.97,0.00021367,4]
[365617598,1749808238770,-705.41,0.00021367,4]
[365617599,1749808238781,-460.0,0.00021367,4]
[365617601,1749808238792,-460.0,0.00021367,4]
[365617602,1749808238803,-177.86,0.00021368,2]
[365617603,1749808238814,-460.0,0.00021368,4]
[365617604,1749808238826,-460.0,0.00021368,4]
[365617605,1749808238837,-460.0,0.00021368,4]
[365617606,1749808238848,-460.0,0.00021368,4]
[365617607,1749808238859,-460.0,0.00021368,4]
[365617608,1749808238872,-460.0,0.00021368,4]
[365617609,1749808238883,-748.02,0.00021368,4]
[365617610,1749808238895,-460.0,0.00021368,4]
[365617611,1749808238906,-390.0,0.00021369,4]
[365617612,1749808238918,-460.0,0.00021369,2]
[365617613,1749808238929,-597.13,0.00021369,4]
[365617614,1749808238941,-460.0,0.00021369,4]
[365617615,1749808238952,-460.0,0.00021369,4]
[365617616,1749808238963,-460.0,0.00021369,4]
[365617617,1749808238974,-636.23,0.00021369,4]
[365617618,1749808238986,-460.0,0.00021369,4]
[365617619,1749808238997,-625.46,0.00021369,4]
[365617620,1749808239011,-486.37,0.00021369,4]
[365617621,1749808239023,-624.51,0.00021369,4]
[365617622,1749808239033,-500.0,0.0002164,2]
[365617623,1749808239042,-450.48538861,0.0002164,2]
[365617624,1749808239052,-460.0,0.00021641,4]
[365617625,1749808239212,-626.4,0.00021641,4]
[365617626,1749808239227,-460.0,0.00021641,4]
[365617627,1749808239237,-561.4226089,0.00021641,4]
[365617628,1749808239246,-460.0,0.00021641,4]
[365617629,1749808239255,-726.97,0.00021641,4]
[365617630,1749808239265,-705.41,0.00021641,4]
[365617631,1749808239274,-440.0,0.00021641,4]
[365617632,1749808239284,-460.0,0.00021641,4]
[365617633,1749808239293,-460.0,0.00021642,4]
[365617634,1749808239303,-460.0,0.00021642,4]
[365617635,1749808239311,-460.0,0.00021642,4]
[365617636,1749808239321,-455.06,0.00021642,4]
[365617637,1749808239330,-460.0,0.00021642,4]
[365617638,1749808239349,-748.02,0.00021642,4]
[365617639,1749808239363,-460.0,0.00021642,4]
[365617640,1749808239374,-460.0,0.00021643,2]
[365617641,1749808239384,-597.13,0.00021643,4]
[365617642,1749808239396,-460.0,0.00021643,4]
[365617643,1749808239406,-364.07672023,0.00021643,4]
[365617644,1749808239416,-460.0,0.00021643,4]
[365617645,1749808239426,-636.23,0.00021643,4]
[365617646,1749808239436,-460.0,0.00021643,4]
[365617647,1749808239446,-625.46,0.00021643,4]
[365617648,1749808239456,-486.37,0.00021643,4]
[365617649,1749808239467,-624.51,0.00021643,4]
[365617650,1749808239477,-401.847141,0.000218,30]
[365617651,1749808239487,-423.28508117,0.000219,6]
[365617652,1749808239497,-529.13,0.00021915,2]
[365617653,1749808239507,-460.0,0.00021915,4]
[365617654,1749808239517,-626.4,0.00021915,4]
[365617655,1749808239527,-460.0,0.00021915,4]
[365617656,1749808239538,-460.0,0.00021915,4]
[365617657,1749808239548,-726.97,0.00021915,4]
[365617658,1749808239558,-705.41,0.00021915,4]
[365617659,1749808239568,-151.5374046,0.00021915,4]
[365617660,1749808239579,-460.0,0.00021916,4]
[365617661,1749808239588,-460.0,0.00021916,4]
[365617662,1749808239598,-460.0,0.00021916,4]
[365617663,1749808239608,-460.0,0.00021916,4]
[365617664,1749808239620,-748.02,0.00021916,4]
[365617665,1749808239631,-460.0,0.00021916,4]
[365617666,1749808239640,-460.0,0.00021917,2]
[365617667,1749808239650,-597.13,0.00021917,4]
[365617668,1749808239661,-460.0,0.00021917,4]
[365617669,1749808239671,-636.23,0.00021917,4]
[365617670,1749808239681,-460.0,0.00021917,4]
[365617671,1749808239691,-625.46,0.00021917,4]
[365617672,1749808239701,-486.37,0.00021917,4]
[365617673,1749808239711,-624.51,0.00021917,4]
[365617674,1749808239720,-500.0,0.0002196,2]
[365617675,1749808239730,-183.0,0.00022,2]
[365617676,1749808239740,-423.28508103,0.00022003,6]
[365617677,1749808239750,-371.0183888,0.00022055,2]
[365617678,1749808239759,-500.0,0.0002206,2]
[365617679,1749808239770,-420.0,0.00022075,2]
[365617680,1749808239780,-2020.94,0.00022092,10]
[365617681,1749808239789,-3853.8,0.00022092,10]
[365617682,1749808239799,-3211.5,0.00022092,10]
[365617683,1749808239809,-2676.25,0.00022092,10]
[365617684,1749808239820,-207.4,0.00022095,2]
[365617685,1749808239830,-529.13,0.00022097,2]
[365617686,1749808239839,-213.24139183,0.00022099,2]
[365617687,1749808239849,-844.94977992,0.00022102,2]
[365617688,1749808239859,-160.0,0.00022102,2]
[365617689,1749808239870,-12531.02669373,0.00022102,2]
[365617690,1749808239880,-160.0,0.00022102,2]
[365617692,1749808239889,-229.78555783,0.00022102,2]
[365617694,1749808239899,-835.28007164,0.00022102,2]
[365617695,1749808239909,-160.0,0.00022102,2]
[365617696,1749808239919,-424.32678023,0.00022102,2]
[365617697,1749808239928,-160.0,0.00022102,2]
[365617698,1749808239938,-160.0,0.00022102,2]
[365617700,1749808239948,-423.28508103,0.00022107,6]
[365617702,1749808239958,-3901.87,0.0002214,2]
[365617704,1749808239968,-500.0,0.00022179,2]
[365617707,1749808239977,-460.0,0.00022189,4]
[365617708,1749808239987,-626.4,0.00022189,4]
[365617710,1749808239997,-460.0,0.00022189,4]
[365617713,1749808240007,-460.0,0.00022189,4]
[365617714,1749808240019,-726.97,0.00022189,4]
[365617716,1749808240029,-705.41,0.00022189,4]
[365617718,1749808240039,-529.13,0.0002219,2]
[365617720,1749808240049,-460.0,0.0002219,4]
[365617721,1749808240060,-460.0,0.0002219,4]
[365617723,1749808240070,-460.0,0.0002219,4]
[365617725,1749808240080,-460.0,0.0002219,4]
[365617727,1749808240090,-748.02,0.0002219,4]
[365617729,1749808240101,-460.0,0.0002219,4]
[365617731,1749808240112,-460.0,0.00022191,2]
[365617733,1749808240123,-597.13,0.00022191,4]
[365617735,1749808240132,-460.0,0.00022191,4]
[365617737,1749808240142,-636.23,0.00022191,4]
[365617739,1749808240152,-460.0,0.00022191,4]
[365617741,1749808240162,-625.46,0.00022191,4]
[365617742,1749808240173,-486.37,0.00022191,4]
[365617743,1749808240183,-624.51,0.00022191,4]
[365617744,1749808240193,-423.28508103,0.0002221,6]
[365617745,1749808240203,-423.28508103,0.00022314,7]
[365617746,1749808240214,-423.28508103,0.00022417,7]
[365617747,1749808240224,-360.46908828,0.00022444,2]
[365617748,1749808240234,-460.0,0.00022463,4]
[365617749,1749808240245,-626.4,0.00022463,4]
[365617750,1749808240254,-460.0,0.00022463,4]
[365617751,1749808240264,-460.0,0.00022463,4]
[365617752,1749808240274,-726.97,0.00022463,4]
[365617753,1749808240284,-705.41,0.00022463,4]
[365617754,1749808240294,-460.0,0.00022464,4]
[365617755,1749808240303,-460.0,0.00022464,4]
[365617756,1749808240313,-460.0,0.00022464,4]
[365617757,1749808240323,-460.0,0.00022464,4]
[365617758,1749808240334,-748.02,0.00022464,4]
[365617759,1749808240343,-460.0,0.00022464,4]
[365617760,1749808240353,-460.0,0.00022465,2]
[365617761,1749808240363,-597.13,0.00022465,4]
[365617762,1749808240373,-460.0,0.00022465,4]
[365617763,1749808240383,-636.23,0.00022465,4]
[365617764,1749808240394,-460.0,0.00022465,4]
[365617765,1749808240404,-625.46,0.00022465,4]
[365617766,1749808240418,-486.37,0.00022465,4]
[365617767,1749808240429,-624.51,0.00022465,4]
[365617768,1749808240439,-243.58051537,0.00022466,2]
[365617769,1749808240449,-1000.0,0.00022508,2]
[365617770,1749808240459,-423.28508103,0.00022521,7]
[365617771,1749808240469,-176.9126268,0.00022546,2]
[365617772,1749808240479,-956.3631649,0.00022546,2]
[365617773,1749808240488,-423.28508103,0.00022624,7]
[365617774,1749808240498,-212.86911536,0.00022638,2]
[365617775,1749808240508,-529.13,0.00022718,2]
[365617776,1749808240518,-590.56,0.00022727,3]
[365617777,1749808240528,-423.28508103,0.00022728,7]
[365617778,1749808240539,-460.0,0.00022737,4]
[365617779,1749808240549,-626.4,0.00022737,4]
[365617780,1749808240560,-460.0,0.00022737,4]
[365617781,1749808240571,-460.0,0.00022737,4]
[365617782,1749808240581,-726.97,0.00022737,4]
[365617783,1749808240592,-705.41,0.00022737,4]
[365617784,1749808240602,-177.86,0.00022738,2]
[365617785,1749808240612,-460.0,0.00022738,4]
[365617786,1749808240623,-176.23334253,0.00022738,4]
[365617787,1749808240633,-460.0,0.00022738,4]
[365617788,1749808240643,-460.0,0.00022738,4]
[365617789,1749808240653,-748.02,0.00022738,4]
[365617790,1749808240662,-460.0,0.00022739,2]